Cogmind - Beta 15 @@@ ROGUE MODE // 2025.10.06 @ 11:39:02 Player: m1m1c Result: Destroyed by G-47 Trooper with Particle Gun Performance ------------- Evolutions (1) 500 Regions Visited (2) 400 Robots Destroyed (9) 45 Value Destroyed (279) 279 Prototype IDs (0) 0 Alien Tech Used (0) 0 Bonus (0) 0 TOTAL SCORE: 1224 Bonus ------- None Cogmind --------- Core Integrity 0/400 Matter 300/300 Energy 100/100 System Corruption 0% Temperature Cool (9) Movement Core (100) Ox1 Location -9/Materials Parts ------- > --- POWER (2) -------- (None) > --- PROPULSION (3) --- (None) > --- UTILITY (2) ------ Small Storage Unit > --- WEAPON (2) ------- (None) > --- INVENTORY (8) ---- Ion Engine Light Treads Light Treads Compact Wheel Compact Wheel Small Laser Assault Rifle Peak State ------------ > --- POWER ------------ Light Ion Engine > --- PROPULSION ------- Aluminum Leg Aluminum Leg > --- UTILITY ---------- Small Storage Unit > --- WEAPON ----------- Assault Rifle Light Assault Rifle > --- INVENTORY -------- Ion Engine Light Treads Light Treads Compact Wheel Compact Wheel Assault Rifle [Rating: 6] Favorites ----------- Power Light Ion Engine Engine Light Ion Engine Propulsion Aluminum Leg Leg Aluminum Leg Utility Small Storage Unit Storage Small Storage Unit Weapon Assault Rifle Ballistic Gun Assault Rifle Build | -11 -10 -9 ------- Run | Yrd Mat Mat Slots Evolved 2 | . . 2 Power 1 | . . 1 Propulsion 1 | . . 1 Utility . | . . . Weapon . | . . . Parts Attached . | . . . Power . | . . . Engine . | . . . Core . | . . . Reactor . | . . . Propulsion . | . . . Treads . | . . . Leg . | . . . Wheel . | . . . Hover . | . . . Flight . | . . . Utility . | . . . Device . | . . . Storage . | . . . Processor . | . . . Hackware . | . . . Protection . | . . . Artifact . | . . . Weapon . | . . . Energy Gun . | . . . Energy Cannon . | . . . Ballistic Gun . | . . . Ballistic Cannon . | . . . Launcher . | . . . Special Weapon . | . . . Impact Weapon . | . . . Slashing Weapon . | . . . Piercing Weapon . | . . . Special Melee Weapon . | . . . Unidentified Prototypes . | . . . Parts Lost 5 | . . 5 Power 1 | . . 1 Propulsion 2 | . . 2 Utility . | . . . Weapon 2 | . . 2 Highest Loss Streak 5 | . . 5 To Critical Strikes . | . . . Average Backups 6 | 6 6 7 Power 1 | 1 1 1 Propulsion 4 | 4 4 4 Utility . | . . . Weapon 1 | 1 1 2 Tool/Special . | . . . Unused Backups 18 | . 6 12 Power 3 | . 1 2 Propulsion 8 | . 2 6 Utility 1 | . 1 . Weapon 6 | . 2 4 Tool/Special . | . . . Average Slot Usage (%) 69 | . 85 56 Engine 11 | . 14 9 Leg 22 | . 28 18 Storage 12 | . 14 11 Ballistic Gun 22 | . 28 17 Peak Build Rating 6 | 6 6 6 Average Rating 5 | 6 6 5 On Entrance 6 | 6 6 6 Naked Turns . | . . . Heaviest Build 11 | 11 11 11 Greatest Support 20 | 20 20 20 Greatest Overweight (x) 1 | . . 1 Average Overweight (x) . | . . . Largest Inventory Capacity 8 | 8 8 8 Average Capacity 8 | 8 8 8 Most Carried 7 | 6 7 7 Average Carried 6 | 6 6 7 Final Capacity 8 | 8 8 8 Final Carried 7 | 6 7 7 Class Distribution -------------------- 100% | Mutant Dominant Class ---------------- Mutant | -10/Materials Mutant | -9/Materials Resources | -11 -10 -9 ----------- Run | Yrd Mat Mat Matter Collected 320 | 200 56 64 Remotely . | . . . Salvage Created 345 | . 208 137 Parts 25 | . 14 11 Haulers Intercepted 1 | . . 1 Recyclers Shooed . | . . . Parts Field Recycled . | . . . Retrieved Matter . | . . . Parts Self-Destructed . | . . . Prevented . | . . . Kills | -11 -10 -9 ------- Run | Yrd Mat Mat Combat Hostiles Destroyed 7 | . 5 2 Guns 7 | . 5 2 Classes Destroyed 3 | . 1 2 Hauler 1 | . . 1 Mechanic 1 | . . 1 Grunt 7 | . 5 2 Best Kill Streak 3 | . 2 3 Combat Bots Only 2 | . 2 1 Max Kills in Single Turn 1 | . 1 1 Gunslinging . | . . . Exploded . | . . . Melee . | . . . Uniques/NPCs Destroyed . | . . . Combat | -11 -10 -9 -------- Run | Yrd Mat Mat Hostile Shots Fired 104 | . 22 82 Missed 28 | . 9 19 Hits 76 | . 13 63 Projectile 76 | . 13 63 Critical Strikes 2 | . 1 1 Damage Taken 955 | . 161 794 Core 439 | . 28 411 Absorbed by Shields . | . . . Core Remaining (%) 94 | 100 88 . Volleys Fired 33 | . 14 19 Largest 2 | . 2 2 Hottest 40 | . 40 40 Shots Fired 65 | . 28 37 Gun 65 | . 28 37 Cannon . | . . . Launcher . | . . . Special . | . . . Kinetic 65 | . 28 37 Thermal . | . . . Explosive . | . . . Electromagnetic . | . . . Robot Hit Streak 5 | . 4 5 Robot Miss Streak 5 | . 3 5 Penetration Max . | . . . Secondary Targets 3 | . 2 1 Max Gunslinging Chain 1 | . 1 1 Shots Hit Robots 39 | . 17 22 Core Hits 20 | . 11 9 Critical Kills . | . . . Critical Parts Destroyed . | . . . Critical Strikes . | . . . Melee Attacks . | . . . Impact . | . . . Slashing . | . . . Piercing . | . . . Sneak Attacks . | . . . Combat Hostiles . | . . . Follow-up Attacks . | . . . Damage Inflicted 418 | . 192 226 Guns 414 | . 192 222 Cannons . | . . . Explosions . | . . . Melee . | . . . Ramming 4 | . . 4 Kinetic 414 | . 192 222 Thermal . | . . . Explosive . | . . . Electromagnetic . | . . . Impact . | . . . Slashing . | . . . Piercing . | . . . Highest Corruption . | . . . Average Corruption . | . . . Corruption Purged . | . . . Corruption Blocked . | . . . Overload Shots . | . . . Overflow Damage . | . . . Projectiles . | . . . Explosions . | . . . Melee . | . . . Knockbacks . | . . . Impact . | . . . Kinetic . | . . . Secondary . | . . . Self-Inflicted Damage . | . . . Shots . | . . . Rammed . | . . . Targets Rammed 2 | . . 2 Kicked 2 | . . 2 Crushed . | . . . Highest Temperature 36 | . 33 36 Average Temperature 10 | . 10 10 Received Heat Transfer 573 | . 114 459 Siege Activations . | . . . Martial Activations . | . . . Shielding Activations . | . . . Robots Disrupted . | . . . Combat Hostiles . | . . . Robots Corrupted . | . . . Combat Hostiles . | . . . Parts Fried . | . . . Impact Corruptions . | . . . Robots Melted . | . . . Combat Hostiles . | . . . Parts Melted . | . . . Heat Transferred . | . . . Parts Sabotaged . | . . . Parts Stolen . | . . . Parts Stripped . | . . . Power Chain Reactions . | . . . Alert | -11 -10 -9 ------- Run | Yrd Mat Mat Maximum Alert Level . | . . . Low Security (%) 100 | 100 100 100 Level 1 . | . . . Level 2 . | . . . Level 3 . | . . . Level 4 . | . . . Level 5 . | . . . High Security . | . . . Max Security . | . . . Peak Influence 70 | . 70 47 Initial 25 | . . 25 Average 20 | . 28 13 Influence Increases 202 | . 130 72 Destroy 0b10 Robot/C 140 | . 100 40 Destroy 0b10 Robot/NC 10 | . . 10 Destroy Leader 52 | . 30 22 Influence Decreases 202 | . 70 132 Entered New Map 35 | . . 35 Time Decay 137 | . 70 67 Lost Part 30 | . . 30 Squads Dispatched 3 | . 1 2 Investigation 2 | . 1 1 Extermination . | . . . Reinforcement 1 | . . 1 Assault . | . . . Garrison . | . . . Intercept . | . . . Searches Triggered . | . . . Construction Impeded . | . . . Haulers Reinforced . | . . . Active Scanning Responses . | . . . Cargo Convoy Interrupts . | . . . Stealth | -11 -10 -9 --------- Run | Yrd Mat Mat Distress Signals 1 | . . 1 Communications Jammed . | . . . Distress Signals . | . . . Times Spotted 14 | . 7 7 Peak Tracking Total 4 | . 3 4 Tactical Retreats . | . . . Traps | -11 -10 -9 ------- Run | Yrd Mat Mat Traps Triggered 2 | . 1 1 Indirectly . | . . . Trap Hack Attempts . | . . . Triggered . | . . . Disarmed . | . . . Reprogrammed . | . . . Reused . | . . . Traps Extracted . | . . . Installed . | . . . Triggered . | . . . Machines | -11 -10 -9 ---------- Run | Yrd Mat Mat Machines Disabled . | . . . Max in Single Turn . | . . . Machines Repaired . | . . . Machines Dismantled . | . . . Machines Sabotaged . | . . . Overloaded Fab Kills . | . . . Hacking | -11 -10 -9 --------- Run | Yrd Mat Mat Machines Accessed 1 | . 1 . Terminals 1 | . 1 . Fabricators . | . . . Repair Stations . | . . . Recycling Units . | . . . Scanalyzers . | . . . Garrison Access . | . . . Total Hacks 4 | . 4 . Successful . | . . . Failed 4 | . 4 . Catastrophic . | . . . Database Lockouts . | . . . Manual . | . . . Terminals 4 | . 4 . Fabricators . | . . . Repair Stations . | . . . Recycling Units . | . . . Scanalyzers . | . . . Garrison Access . | . . . Terminal Hacks . | . . . Fabricator Hacks . | . . . Repair Station Hacks . | . . . Recycling Unit Hacks . | . . . Scanalyzer . | . . . Garrison Access Hacks . | . . . Unauthorized Hacks . | . . . Terminals . | . . . Fabricators . | . . . Repair Stations . | . . . Recycling Units . | . . . Scanalyzers . | . . . Garrison Access . | . . . Data Cores Recovered . | . . . Used . | . . . Hacking Detections 1 | . 1 . Full Trace Events 1 | . 1 . Feedback Events . | . . . Feedback Blocked . | . . . Robot Schematics Acquired . | . . . Robots Built . | . . . Authchips . | . . . Time . | . . . Total Robot Build Rating . | . . . Part Schematics Acquired . | . . . Parts Built . | . . . Authchips . | . . . Time . | . . . Total Part Build Rating . | . . . Parts Repaired . | . . . Time . | . . . Parts Recycled . | . . . Recycled Matter . | . . . Retrieved Matter . | . . . Retrieved Components . | . . . Parts Scanalyzed . | . . . Part Schematics Acquired . | . . . Parts Damaged . | . . . Bothacking | -11 -10 -9 ------------ Run | Yrd Mat Mat Used RIF Installer . | . . . Robots Hacked . | . . . Non-combat . | . . . Combat . | . . . Robot Hacks Applied . | . . . Relay Couplers Released . | . . . Fabnet Peak Effective % . | . . . Robots Rewired . | . . . Allies Hacked . | . . . Hacks Repelled . | . . . Allies | -11 -10 -9 -------- Run | Yrd Mat Mat Total Allies . | . . . Largest Group . | . . . Highest-Rated Group . | . . . Highest-Rated Ally . | . . . Total Orders . | . . . Ally Attacks . | . . . Total Damage . | . . . Kills . | . . . Allies Corrupted . | . . . Allies Melted . | . . . Intel | -11 -10 -9 ------- Run | Yrd Mat Mat Active Infowar (turns) . | . . . Robot Analysis Total . | . . . Derelict Logs Recovered . | . . . Drone Launches . | . . . Drone Recoveries . | . . . Exploration | -11 -10 -9 ------------- Run | Yrd Mat Mat Turns Passed 360 | 3 159 198 Spaces Moved 221 | 3 99 119 Core 11 | . . 11 Treads . | . . . Legs 210 | 3 99 108 Wheels . | . . . Hover . | . . . Flight . | . . . Fastest Speed 100 | 120 120 100 Average Speed 119 | 120 120 119 Slowest Speed 190 | 120 120 190 Overloaded Moves . | . . . Propulsion Burnouts . | . . . Robots Hopped . | . . . Potential Cave-ins . | . . . Cave-ins Triggered . | . . . Exploration Rate (%) 13 | 1 24 14 Regions Visited 2 Branch Regions . Pre-discovered Areas . | . . . Known Exits Taken . | . . . Unknown Exits Taken 2 | 1 1 . Scrap Searched . | . . . Spaces Dug . | . . . Terrain Destroyed . | . . . Melee . | . . . Projectile . | . . . AOE . | . . . Terrain Rammed . | . . . Walls Destroyed . | . . . Machines Disabled . | . . . Actions | -11 -10 -9 --------- Run | Yrd Mat Mat Total 256 | 2 114 140 Wait 1 | . 1 . Move 219 | 2 98 119 Hop . | . . . Pick Up 1 | . 1 . Fast Attach . | . . . Attach . | . . . Detach . | . . . Swap . | . . . Drop . | . . . Fire 33 | . 14 19 Melee . | . . . Ram . | . . . Kick 2 | . . 2 Crush . | . . . Escape Stasis . | . . . Rewire . | . . . Trap . | . . . Miscellaneous . | . . . Route ------- -11/Scrapyard -10/Materials -9/Materials (discovered 1 exit: [*Min]) History --------- Turn | Location | Event 1 | -11/Scrapyard | Discovered new exit (range 2) 4 | -11/Scrapyard | Entered Materials 155 | -10/Materials | Discovered new exit (range 5) 163 | -10/Materials | Entered another Materials area 163 | -9/Materials | Evolved 2 slots: Power x1, Propulsion x1 305 | -9/Materials | Build established: Mutant 331 | -9/Materials | Core integrity fell below 50% 336 | -9/Materials | Discovered new exit (range 9) 353 | -9/Materials | Core integrity fell below 20% 361 | -9/Materials | Destroyed by G-47 Trooper with Particle Gun Last Messages --------------- Acquired 37 matter. U-05 Engineer lays Concrete. R-06 Scavenger collects Recalibrator. A-02 Transporter sends out distress signal. A-02 Transporter destroyed. R-06 Scavenger collects Aluminum Leg. R-06 Scavenger collects Sml. Laser. R-06 Scavenger collects Ion Engine. Critical hit (Burn: +37). G-34 Mercenary destroyed. Switching to secondary target: G-34 Mercenary. Acquired 27 matter. Aluminum Leg destroyed. Kicked G-34 Mercenary. Lgt. Assault Rifle destroyed. Assault Rifle destroyed. Kicked G-34 Mercenary out of the way. EXIT=FOUND Lgt. Ion Engine destroyed. Aluminum Leg destroyed. Map ----- +----------------------------------------------------+ | | | | | ????????????????##########????????? | | ????????????????# #????????? | | ????????????????# #????????? | | ????????????????# #????????? | | ????????????????# #????????? | | ????????????????# #????????? | | ????????????????# #????????? | | ????????????????# #????????? | | ????????????????# #????????? | | ????????????????# #????????? | | ?????????#####??#+###+############# | | ????????##"""##?# # ?# | | ???????##"|||"### # """ ??# | | ???????#"" ""## + """""???+ | | ???????# ## # """""???# | | ???????# < ## # """""???# | | ???????# ## #? """ ???# | | ???????# ## #? ???+ | | ???????## ### #?? ???# | | ????????## ##?# ######+#### | | ?????+#### #### | | # + g![* = | | # # g[%[! | | # ??#@g=[*[ u% | | # ????# ###+####+####### | | # ??????# # %! # ????#" | | ?????????# + # ??#T | | ?????????#### # #?#" | | ????????????# # ? #?# | | ????????????# # ? + | | ????????????# # ? #####+#### | | ????????????###+#### ??#????????? | | ??????????????? ????? ????????????? | | ??????????????? ??????????????????? | | ??????????????? ??????????????????? | | ??????????????? ??????????????????? | | ??????????????? ??????????????????? | | ??????????????? ??????????????????? | | ??????????????? ??????????????????? | | ??????????????????????????????????? | | ??????????????????????????????????? | | ??????????????????????????????????? | | ??????????????????????????????????? | | ??????????????????????????????????? | | ??????????????????????????????????? | | ??????????????????????????????????? | | ??????????????????????????????????? | | ??????????????????????????????????? | +----------------------------------------------------+ Best States ------------- Heat Dissipation 28 Energy Generation 10 Energy Capacity 125 Matter Stores 300 Matter Capacity 300 Sight Range 16 Terrain Scan Density 10 Evasion (%) 55 Item Schematics ----------------- None Robot Schematics ------------------ None Fabricated ------------ Nothing Repaired ---------- Nothing Alien Tech Used ----------------- None Achievements -------------- None Challenges ------------ None Game ------ Seed SpliceUtilityRecalibrator Manual? 0 Play Time 00:07:36 Cumulative 52.9 hours Start 2025.10.06 @ 11:32:37 End 2025.10.06 @ 11:39:02 Sessions 1 Manual Loads 0 Difficulty Rogue Special Mode None Game No. 106 Rogue 103 Adventurer 0 Explorer 3 Win Type - Total 0 Types 0/0/0/0/0/0/0/0/0/0 Lore% 11 Gallery% 33 Achievement% 32 Wizard Run 0 Options --------- Layout 1 ASCII 1 Keyboard 0 Movement Mouse Keybinds 1 Fullscreen 1 Font 24/Smallcaps Map View 50x35 Zoom Use 0% Tactical HUD 0 Map Filters NONE Filters NONE Steam 1 RUN: fa427890-ab73-4189-bff7-bc3b60214e39